[Event "Late-Titled-Tuesday-Blitz-March-19-2024"]
[Site "Chess.com"]
[Date "2024.03.19"]
[Round "6"]
[White "JaackCamel"]
[Black "szachmistrz2500"]
[Result "0-1"]
[WhiteElo "2189"]
[BlackElo "2454"]
[TimeControl "180+1"]
[EndTime "15:04:29 PDT"]
[Termination "szachmistrz2500 won on time"]

1. d4 {[%clk 0:03:00.9]} 1... c5 {[%clk 0:02:59.3]} 2. d5 {[%clk 0:03:00.5]}
2... e5 {[%clk 0:02:58.9]} 3. c4 {[%clk 0:03:00.3]} 3... d6 {[%clk 0:02:58.8]}
4. e4 {[%clk 0:03:00.3]} 4... g6 {[%clk 0:02:55.1]} 5. Nc3 {[%clk 0:02:57.4]}
5... Bg7 {[%clk 0:02:55.2]} 6. Nf3 {[%clk 0:02:52.9]} 6... Ne7 {[%clk 0:02:55]}
7. Be2 {[%clk 0:02:49.6]} 7... Na6 {[%clk 0:02:54.8]} 8. h3 {[%clk 0:02:48.4]}
8... Nc7 {[%clk 0:02:54.5]} 9. g4 {[%clk 0:02:48]} 9... a6 {[%clk 0:02:52.4]}
10. Be3 {[%clk 0:02:42.4]} 10... Bd7 {[%clk 0:02:50.9]} 11. Qd2 {[%clk 0:02:42]}
11... b5 {[%clk 0:02:50.2]} 12. Rg1 {[%clk 0:02:28.2]} 12... h6 {[%clk
0:02:49.1]} 13. h4 {[%clk 0:02:17]} 13... Rb8 {[%clk 0:02:48.3]} 14. Rb1 {[%clk
0:02:07.7]} 14... bxc4 {[%clk 0:02:48.1]} 15. a4 {[%clk 0:02:06.3]} 15... Rb4
{[%clk 0:02:43.8]} 16. Qc2 {[%clk 0:01:59.6]} 16... Na8 {[%clk 0:02:38.8]} 17.
h5 {[%clk 0:01:58.8]} 17... g5 {[%clk 0:02:36.3]} 18. Nd2 {[%clk 0:01:57.4]}
18... Nb6 {[%clk 0:02:25.3]} 19. Ra1 {[%clk 0:01:40]} 19... Qb8 {[%clk
0:02:20.6]} 20. Ra2 {[%clk 0:01:34.2]} 20... a5 {[%clk 0:02:10.5]} 21. f3 {[%clk
0:01:25.6]} 21... O-O {[%clk 0:02:06.9]} 22. Kf2 {[%clk 0:01:25.2]} 22... Qb7
{[%clk 0:02:06.2]} 23. Nb5 {[%clk 0:01:11.2]} 23... Bxb5 {[%clk 0:02:01.9]} 24.
axb5 {[%clk 0:01:10.9]} 24... Rxb5 {[%clk 0:02:02.1]} 25. Bxc4 {[%clk
0:01:01.3]} 25... Rb4 {[%clk 0:01:47.6]} 26. b3 {[%clk 0:00:47.6]} 26... Ra8
{[%clk 0:01:37.4]} 27. Rga1 {[%clk 0:00:45.2]} 27... Nxc4 {[%clk 0:01:35.8]} 28.
Nxc4 {[%clk 0:00:44.3]} 28... Nc8 {[%clk 0:01:23.6]} 29. Nxa5 {[%clk 0:00:41.2]}
29... Qb5 {[%clk 0:01:22]} 30. Nc6 {[%clk 0:00:37.1]} 30... Rxa2 {[%clk
0:01:19.9]} 31. Qxa2 {[%clk 0:00:30.1]} 31... Rxb3 {[%clk 0:01:20]} 32. Qa8
{[%clk 0:00:14.6]} 32... Rb2+ {[%clk 0:01:18.6]} 33. Kg3 {[%clk 0:00:14.2]}
33... Qe2 {[%clk 0:01:16.5]} 34. Qxc8+ {[%clk 0:00:12.4]} 34... Kh7 {[%clk
0:01:14.4]} 35. Qf5+ {[%clk 0:00:12.1]} 35... Kg8 {[%clk 0:01:14.7]} 36. Ra8+
{[%clk 0:00:12.1]} 36... Bf8 {[%clk 0:01:15.1]} 37. Rxf8+ {[%clk 0:00:04.9]}
37... Kxf8 {[%clk 0:01:14.2]} 38. Qc8+ {[%clk 0:00:01.9]} 38... Kg7 {[%clk
0:01:14.6]} 0-1

[Event "Late-Titled-Tuesday-Blitz-March-19-2024"]
[Site "Chess.com"]
[Date "2024.03.19"]
[Round "6"]
[White "EsmeraldasAnderson03"]
[Black "Chempiblinka"]
[Result "1-0"]
[WhiteElo "2558"]
[BlackElo "2355"]
[TimeControl "180+1"]
[EndTime "15:04:37 PDT"]
[Termination "EsmeraldasAnderson03 won on time"]

1. d4 {[%clk 0:03:00.9]} 1... Nf6 {[%clk 0:03:00.3]} 2. c4 {[%clk 0:03:01.2]}
2... g6 {[%clk 0:03:00.8]} 3. Nc3 {[%clk 0:03:01.1]} 3... Bg7 {[%clk 0:03:01.4]}
4. e4 {[%clk 0:03:02]} 4... d6 {[%clk 0:03:01.5]} 5. Be2 {[%clk 0:03:02.6]} 5...
O-O {[%clk 0:03:02]} 6. Be3 {[%clk 0:03:03.1]} 6... c5 {[%clk 0:02:59.8]} 7. d5
{[%clk 0:03:03.1]} 7... e6 {[%clk 0:02:57.9]} 8. Nf3 {[%clk 0:03:03.3]} 8...
exd5 {[%clk 0:02:58.3]} 9. cxd5 {[%clk 0:03:03.2]} 9... Na6 {[%clk 0:02:57.1]}
10. Nd2 {[%clk 0:03:00]} 10... Nc7 {[%clk 0:02:55.9]} 11. O-O {[%clk 0:03:00.6]}
11... Rb8 {[%clk 0:02:53.1]} 12. a4 {[%clk 0:03:01.1]} 12... b6 {[%clk
0:02:52.8]} 13. Nc4 {[%clk 0:02:51.2]} 13... Re8 {[%clk 0:02:46.4]} 14. Qc2
{[%clk 0:02:45]} 14... a6 {[%clk 0:02:42.7]} 15. Bf4 {[%clk 0:02:44.4]} 15...
Bf8 {[%clk 0:02:35.9]} 16. Bf3 {[%clk 0:02:29.1]} 16... b5 {[%clk 0:02:35.9]}
17. axb5 {[%clk 0:02:28.1]} 17... axb5 {[%clk 0:02:36.8]} 18. Na5 {[%clk
0:02:28.5]} 18... Bd7 {[%clk 0:02:27.9]} 19. Rfe1 {[%clk 0:02:22.7]} 19... b4
{[%clk 0:02:28.3]} 20. Nb1 {[%clk 0:02:19.5]} 20... Nb5 {[%clk 0:02:28.3]} 21.
Nb3 {[%clk 0:02:13.6]} 21... Nxd5 {[%clk 0:02:12.2]} 22. Bg3 {[%clk 0:02:13.7]}
22... Ndc7 {[%clk 0:01:49]} 23. N1d2 {[%clk 0:02:13.6]} 23... Ne6 {[%clk
0:01:47.5]} 24. Nc4 {[%clk 0:02:05.7]} 24... Ned4 {[%clk 0:01:47.9]} 25. Nxd4
{[%clk 0:02:05.9]} 25... Nxd4 {[%clk 0:01:48.4]} 26. Qd3 {[%clk 0:02:03.7]}
26... Bb5 {[%clk 0:01:45.5]} 27. b3 {[%clk 0:02:03.7]} 27... Bg7 {[%clk
0:01:39.8]} 28. Rad1 {[%clk 0:02:02.5]} 28... Rb6 {[%clk 0:01:26.1]} 29. h4
{[%clk 0:02:01.1]} 29... Ra6 {[%clk 0:01:26.5]} 30. h5 {[%clk 0:02:00]} 30...
Ra3 {[%clk 0:01:10.4]} 31. Rb1 {[%clk 0:01:58.8]} 31... d5 {[%clk 0:00:40.8]}
32. exd5 {[%clk 0:01:58]} 32... Rxe1+ {[%clk 0:00:37.1]} 33. Rxe1 {[%clk
0:01:58.9]} 33... Rxb3 {[%clk 0:00:37.4]} 34. Qe4 {[%clk 0:01:56.1]} 34... Bxc4
{[%clk 0:00:20.3]} 35. Qe8+ {[%clk 0:01:55.7]} 35... Qxe8 {[%clk 0:00:20.6]} 36.
Rxe8+ {[%clk 0:01:56.3]} 36... Bf8 {[%clk 0:00:21.2]} 37. Bd6 {[%clk 0:01:56.7]}
37... Kg7 {[%clk 0:00:18.6]} 38. Bxf8+ {[%clk 0:01:54]} 38... Kf6 {[%clk
0:00:18.7]} 39. Be4 {[%clk 0:01:49.5]} 39... Ne2+ {[%clk 0:00:14.9]} 40. Kh2
{[%clk 0:01:47.7]} 40... Nf4 {[%clk 0:00:15.3]} 41. d6 {[%clk 0:01:43.9]} 41...
Bb5 {[%clk 0:00:13]} 42. Rb8 {[%clk 0:01:43.5]} 42... Bd7 {[%clk 0:00:12.2]} 43.
h6 {[%clk 0:01:38.8]} 43... Ne6 {[%clk 0:00:10.6]} 44. Bg7+ {[%clk 0:01:34.5]}
44... Nxg7 {[%clk 0:00:09.2]} 45. hxg7 {[%clk 0:01:35.4]} 45... Kxg7 {[%clk
0:00:09.7]} 46. Rb7 {[%clk 0:01:35]} 46... Bf5 {[%clk 0:00:06.7]} 47. d7 {[%clk
0:01:29]} 47... Bxd7 {[%clk 0:00:04.2]} 48. Rxd7 {[%clk 0:01:29.9]} 1-0

[Event "Late-Titled-Tuesday-Blitz-March-19-2024"]
[Site "Chess.com"]
[Date "2024.03.19"]
[Round "6"]
[White "Kumi29"]
[Black "PapaieDudu"]
[Result "1-0"]
[WhiteElo "2584"]
[BlackElo "2466"]
[TimeControl "180+1"]
[EndTime "15:04:45 PDT"]
[Termination "Kumi29 won by resignation"]

1. d4 {[%clk 0:03:00.9]} 1... d5 {[%clk 0:03:00.4]} 2. Bg5 {[%clk 0:02:58.6]}
2... c5 {[%clk 0:02:54.2]} 3. e3 {[%clk 0:02:54]} 3... Nc6 {[%clk 0:02:53.4]} 4.
Nc3 {[%clk 0:02:51.7]} 4... Nf6 {[%clk 0:02:49.7]} 5. Bxf6 {[%clk 0:02:51.7]}
5... exf6 {[%clk 0:02:43.4]} 6. dxc5 {[%clk 0:02:52.1]} 6... Be6 {[%clk
0:02:42.7]} 7. Nf3 {[%clk 0:02:46.3]} 7... Bxc5 {[%clk 0:02:41.6]} 8. Nd4 {[%clk
0:02:37.2]} 8... O-O {[%clk 0:02:38.5]} 9. Be2 {[%clk 0:02:31.9]} 9... Re8
{[%clk 0:02:37.3]} 10. O-O {[%clk 0:02:31.5]} 10... a6 {[%clk 0:02:35.9]} 11.
Bf3 {[%clk 0:02:29.7]} 11... Qd7 {[%clk 0:02:31.4]} 12. Nb3 {[%clk 0:02:29.4]}
12... Bb4 {[%clk 0:02:28.2]} 13. Nxd5 {[%clk 0:02:27.9]} 13... Rad8 {[%clk
0:02:21.3]} 14. Nxb4 {[%clk 0:02:25.4]} 14... Nxb4 {[%clk 0:02:01.1]} 15. Qxd7
{[%clk 0:02:06.9]} 15... Rxd7 {[%clk 0:01:59]} 16. Nd4 {[%clk 0:02:07.2]} 16...
Bd5 {[%clk 0:01:52.1]} 17. c3 {[%clk 0:01:53.9]} 17... Bxf3 {[%clk 0:01:50.6]}
18. Nxf3 {[%clk 0:01:42.4]} 18... Nc6 {[%clk 0:01:39.1]} 19. Rfd1 {[%clk
0:01:40.8]} 19... Rde7 {[%clk 0:01:38.6]} 20. Kf1 {[%clk 0:01:37.7]} 20... b5
{[%clk 0:01:37.5]} 21. Rd6 {[%clk 0:01:36.5]} 21... Rc7 {[%clk 0:01:34.2]} 22.
Rad1 {[%clk 0:01:35.7]} 22... b4 {[%clk 0:01:29.2]} 23. c4 {[%clk 0:01:34.9]}
23... Kf8 {[%clk 0:01:19.4]} 24. b3 {[%clk 0:01:34.6]} 24... Ke7 {[%clk
0:01:17.3]} 25. Nd4 {[%clk 0:01:17.9]} 25... Ne5 {[%clk 0:01:15]} 26. Nf5+
{[%clk 0:01:16]} 26... Kf8 {[%clk 0:01:14.4]} 27. Rxa6 {[%clk 0:01:15.8]} 27...
g6 {[%clk 0:01:08.8]} 28. Nd4 {[%clk 0:01:15]} 28... f5 {[%clk 0:01:02.9]} 29.
g3 {[%clk 0:01:08.5]} 29... Ng4 {[%clk 0:01:02.3]} 30. h3 {[%clk 0:01:06.5]}
30... Nf6 {[%clk 0:01:01.6]} 31. Rxf6 {[%clk 0:01:05.9]} 31... Ra7 {[%clk
0:00:58.8]} 32. Rd2 {[%clk 0:01:01.8]} 32... Rea8 {[%clk 0:00:55.1]} 33. Rb6
{[%clk 0:00:58.3]} 33... Kg7 {[%clk 0:00:52.3]} 34. Rxb4 {[%clk 0:00:57.3]}
34... h5 {[%clk 0:00:52.7]} 35. h4 {[%clk 0:00:57.3]} 35... Re7 {[%clk
0:00:51.8]} 36. a4 {[%clk 0:00:55.1]} 36... Re4 {[%clk 0:00:51.9]} 37. Nf3
{[%clk 0:00:52.6]} 37... Rae8 {[%clk 0:00:47.9]} 38. Rb7 {[%clk 0:00:52.1]}
38... Kf6 {[%clk 0:00:47.3]} 39. Rd6+ {[%clk 0:00:50.9]} 39... R8e6 {[%clk
0:00:44.8]} 40. Rxe6+ {[%clk 0:00:49]} 40... fxe6 {[%clk 0:00:44.9]} 41. Ng5
{[%clk 0:00:45.7]} 41... Rg4 {[%clk 0:00:42.8]} 42. f4 {[%clk 0:00:43.3]} 1-0

[Event "Late-Titled-Tuesday-Blitz-March-19-2024"]
[Site "Chess.com"]
[Date "2024.03.19"]
[Round "6"]
[White "secretsuperstar7"]
[Black "KnightmareJoker"]
[Result "1-0"]
[WhiteElo "2497"]
[BlackElo "2313"]
[TimeControl "180+1"]
[EndTime "15:04:49 PDT"]
[Termination "secretsuperstar7 won by resignation"]

1. c4 {[%clk 0:03:00.9]} 1... e6 {[%clk 0:03:00.2]} 2. Nc3 {[%clk 0:03:00.7]}
2... d5 {[%clk 0:03:00.9]} 3. cxd5 {[%clk 0:02:59.1]} 3... exd5 {[%clk
0:03:01.8]} 4. d4 {[%clk 0:02:59.5]} 4... Nf6 {[%clk 0:03:01.9]} 5. Bg5 {[%clk
0:02:59.6]} 5... Be7 {[%clk 0:03:02.2]} 6. e3 {[%clk 0:02:59.5]} 6... h6 {[%clk
0:03:02.7]} 7. Bh4 {[%clk 0:02:59.1]} 7... c6 {[%clk 0:03:03.1]} 8. Bd3 {[%clk
0:02:59.4]} 8... O-O {[%clk 0:03:02.6]} 9. Nge2 {[%clk 0:02:59.6]} 9... Nbd7
{[%clk 0:03:03]} 10. O-O {[%clk 0:02:59.6]} 10... Re8 {[%clk 0:03:02.7]} 11. Qc2
{[%clk 0:02:59.9]} 11... Nf8 {[%clk 0:03:03.1]} 12. f3 {[%clk 0:02:59.5]} 12...
Be6 {[%clk 0:03:03.3]} 13. Rad1 {[%clk 0:02:58.8]} 13... Nh5 {[%clk 0:03:00.1]}
14. Bf2 {[%clk 0:02:51.7]} 14... Bh4 {[%clk 0:02:54.4]} 15. e4 {[%clk
0:02:44.3]} 15... Bxf2+ {[%clk 0:02:52.1]} 16. Rxf2 {[%clk 0:02:44.5]} 16... Qg5
{[%clk 0:02:51.5]} 17. f4 {[%clk 0:02:36.9]} 17... Qh4 {[%clk 0:02:50.8]} 18. f5
{[%clk 0:02:23]} 18... Bd7 {[%clk 0:02:50.3]} 19. e5 {[%clk 0:02:10.1]} 19... f6
{[%clk 0:02:19.4]} 20. e6 {[%clk 0:02:02]} 20... Bxe6 {[%clk 0:02:19.7]} 21.
fxe6 {[%clk 0:02:01.6]} 21... Nxe6 {[%clk 0:02:20.4]} 22. Bg6 {[%clk 0:01:52.5]}
22... Re7 {[%clk 0:02:20.1]} 23. Bxh5 {[%clk 0:01:25.1]} 23... Qxh5 {[%clk
0:02:19.9]} 24. Qf5 {[%clk 0:01:24.8]} 24... Qh4 {[%clk 0:01:57]} 25. g3 {[%clk
0:01:16.8]} 25... Qg5 {[%clk 0:01:56.1]} 26. Qxg5 {[%clk 0:01:15.2]} 26... Nxg5
{[%clk 0:01:56.8]} 27. Kg2 {[%clk 0:01:14.6]} 27... Rae8 {[%clk 0:01:56.8]} 28.
h4 {[%clk 0:01:10.8]} 28... Ne6 {[%clk 0:01:52]} 29. Nf4 {[%clk 0:01:10.7]}
29... Nc7 {[%clk 0:01:50.3]} 30. Rdd2 {[%clk 0:01:08.4]} 30... g5 {[%clk
0:01:47.7]} 31. Nh5 {[%clk 0:01:05.6]} 31... Rf8 {[%clk 0:01:46.3]} 32. Nxf6+
{[%clk 0:01:05.2]} 32... Kh8 {[%clk 0:01:46.8]} 33. Ng4 {[%clk 0:01:04.6]} 33...
Ref7 {[%clk 0:01:41.1]} 34. Rxf7 {[%clk 0:00:56.4]} 34... Rxf7 {[%clk 0:01:42]}
35. Nxh6 {[%clk 0:00:55.9]} 35... Rg7 {[%clk 0:01:42.6]} 36. hxg5 {[%clk
0:00:53.9]} 36... Ne6 {[%clk 0:01:43.3]} 37. Ng4 {[%clk 0:00:30.4]} 37... Rxg5
{[%clk 0:01:38.5]} 38. Ne5 {[%clk 0:00:27]} 38... Kg7 {[%clk 0:01:34.6]} 39. Nf3
{[%clk 0:00:24]} 39... Rg6 {[%clk 0:01:31.3]} 40. Kf2 {[%clk 0:00:22.6]} 40...
Rf6 {[%clk 0:01:30]} 41. Ke3 {[%clk 0:00:21]} 41... Kg6 {[%clk 0:01:24.5]} 42.
Ne5+ {[%clk 0:00:20]} 42... Kg7 {[%clk 0:01:24.9]} 43. Ne2 {[%clk 0:00:19.8]}
43... Ng5 {[%clk 0:01:16.3]} 44. Nf4 {[%clk 0:00:19.9]} 44... Ne4 {[%clk
0:01:16.9]} 45. Nh5+ {[%clk 0:00:19.7]} 45... Kh6 {[%clk 0:01:13.8]} 46. Nxf6
{[%clk 0:00:19]} 46... Kg5 {[%clk 0:01:14.1]} 47. Nxe4+ {[%clk 0:00:18.8]} 47...
dxe4 {[%clk 0:01:12.8]} 48. Kxe4 {[%clk 0:00:19.2]} 48... c5 {[%clk 0:01:13.7]}
49. dxc5 {[%clk 0:00:19.2]} 49... b6 {[%clk 0:01:14.6]} 50. c6 {[%clk
0:00:19.5]} 50... b5 {[%clk 0:01:15.2]} 51. c7 {[%clk 0:00:19.5]} 51... b4
{[%clk 0:01:16.1]} 52. c8=Q {[%clk 0:00:19.8]} 52... b3 {[%clk 0:01:17]} 53.
Qf5+ {[%clk 0:00:19.9]} 1-0

[Event "Late-Titled-Tuesday-Blitz-March-19-2024"]
[Site "Chess.com"]
[Date "2024.03.19"]
[Round "6"]
[White "Zq1"]
[Black "ExchangeAB"]
[Result "1/2-1/2"]
[WhiteElo "2625"]
[BlackElo "2506"]
[TimeControl "180+1"]
[EndTime "15:04:56 PDT"]
[Termination "Game drawn by repetition"]

1. d4 {[%clk 0:03:00.9]} 1... d5 {[%clk 0:02:57.5]} 2. c4 {[%clk 0:03:00.8]}
2... c5 {[%clk 0:02:57.7]} 3. cxd5 {[%clk 0:02:57.2]} 3... Qxd5 {[%clk
0:02:57.5]} 4. Nf3 {[%clk 0:02:55.3]} 4... cxd4 {[%clk 0:02:55.2]} 5. Nc3 {[%clk
0:02:55.2]} 5... Qa5 {[%clk 0:02:55.3]} 6. Nxd4 {[%clk 0:02:52.7]} 6... Nf6
{[%clk 0:02:55.2]} 7. g3 {[%clk 0:02:51.9]} 7... a6 {[%clk 0:02:48.8]} 8. Bg2
{[%clk 0:02:51.1]} 8... e5 {[%clk 0:02:48.8]} 9. Nb3 {[%clk 0:02:46.8]} 9... Qc7
{[%clk 0:02:48.9]} 10. O-O {[%clk 0:02:45.3]} 10... Nc6 {[%clk 0:02:48.5]} 11.
Bg5 {[%clk 0:02:44.1]} 11... Be7 {[%clk 0:02:39.5]} 12. Rc1 {[%clk 0:02:42.7]}
12... O-O {[%clk 0:02:37.6]} 13. Bxf6 {[%clk 0:02:40.3]} 13... Bxf6 {[%clk
0:02:37.8]} 14. Nd5 {[%clk 0:02:40.5]} 14... Qd8 {[%clk 0:02:37]} 15. Nc5 {[%clk
0:02:35.1]} 15... Nd4 {[%clk 0:02:33.9]} 16. e3 {[%clk 0:02:25.7]} 16... Ne6
{[%clk 0:02:32.9]} 17. Nxb7 {[%clk 0:02:07.9]} 17... Bxb7 {[%clk 0:02:29.6]} 18.
Nxf6+ {[%clk 0:02:07.7]} 18... Qxf6 {[%clk 0:02:30.5]} 19. Bxb7 {[%clk
0:02:06.5]} 19... Rab8 {[%clk 0:02:30.9]} 20. Bxa6 {[%clk 0:02:05.4]} 20... Rxb2
{[%clk 0:02:30.5]} 21. Rc2 {[%clk 0:01:57.4]} 21... Rb6 {[%clk 0:02:19.6]} 22.
Bc4 {[%clk 0:01:53.2]} 22... Ng5 {[%clk 0:02:18.5]} 23. Bd5 {[%clk 0:01:50.1]}
23... e4 {[%clk 0:02:17]} 24. Qg4 {[%clk 0:01:43.4]} 24... Qe5 {[%clk
0:01:42.9]} 25. Rd1 {[%clk 0:01:38.9]} 25... h5 {[%clk 0:01:40.3]} 26. Qe2
{[%clk 0:01:28.2]} 26... Rf6 {[%clk 0:01:36]} 27. Qf1 {[%clk 0:01:10.2]} 27...
Rd8 {[%clk 0:01:21.4]} 28. Bb3 {[%clk 0:00:54]} 28... Nf3+ {[%clk 0:00:52.8]}
29. Kh1 {[%clk 0:00:51.7]} 29... Rfd6 {[%clk 0:00:42.9]} 30. Rxd6 {[%clk
0:00:48.3]} 30... Rxd6 {[%clk 0:00:43.8]} 31. Rc8+ {[%clk 0:00:40.5]} 31... Kh7
{[%clk 0:00:43.6]} 32. Bxf7 {[%clk 0:00:32]} 32... Rf6 {[%clk 0:00:35.2]} 33.
Bg8+ {[%clk 0:00:28.5]} 33... Kh6 {[%clk 0:00:33.8]} 34. Bb3 {[%clk 0:00:27.2]}
34... Nd2 {[%clk 0:00:20.4]} 35. Qe1 {[%clk 0:00:22.3]} 35... Nf3 {[%clk
0:00:19.7]} 36. Qf1 {[%clk 0:00:22.2]} 36... Nd2 {[%clk 0:00:19.9]} 37. Qe1
{[%clk 0:00:22.4]} 37... Nf3 {[%clk 0:00:20.1]} 38. Qf1 {[%clk 0:00:22.6]}
1/2-1/2

[Event "Late-Titled-Tuesday-Blitz-March-19-2024"]
[Site "Chess.com"]
[Date "2024.03.19"]
[Round "6"]
[White "Jospem"]
[Black "AlexeiShirov"]
[Result "1/2-1/2"]
[WhiteElo "3049"]
[BlackElo "2845"]
[TimeControl "180+1"]
[EndTime "15:04:58 PDT"]
[Termination "Game drawn by repetition"]

1. e4 {[%clk 0:02:58.5]} 1... e5 {[%clk 0:02:59.2]} 2. Nf3 {[%clk 0:02:58.9]}
2... Nc6 {[%clk 0:02:58.8]} 3. Nc3 {[%clk 0:02:59.6]} 3... Nf6 {[%clk
0:02:56.6]} 4. h3 {[%clk 0:03:00.1]} 4... d5 {[%clk 0:02:33.5]} 5. Bb5 {[%clk
0:02:59.9]} 5... Nxe4 {[%clk 0:02:29.4]} 6. O-O {[%clk 0:02:59.6]} 6... Nxc3
{[%clk 0:02:25.5]} 7. dxc3 {[%clk 0:03:00.5]} 7... e4 {[%clk 0:02:15]} 8. Ne5
{[%clk 0:02:54.4]} 8... Qd6 {[%clk 0:02:00.8]} 9. Bf4 {[%clk 0:02:54]} 9... a6
{[%clk 0:01:49.3]} 10. Bxc6+ {[%clk 0:02:28.1]} 10... bxc6 {[%clk 0:01:47.2]}
11. f3 {[%clk 0:02:22.5]} 11... f6 {[%clk 0:01:38.1]} 12. Nd3 {[%clk 0:02:22.7]}
12... Qe6 {[%clk 0:01:32.8]} 13. fxe4 {[%clk 0:02:20.9]} 13... dxe4 {[%clk
0:01:32]} 14. Nf2 {[%clk 0:02:09.9]} 14... Be7 {[%clk 0:01:29.7]} 15. Qd4 {[%clk
0:02:05.2]} 15... c5 {[%clk 0:01:15.4]} 16. Qxe4 {[%clk 0:02:03.4]} 16... Qxe4
{[%clk 0:01:14.8]} 17. Nxe4 {[%clk 0:02:04.3]} 17... Bb7 {[%clk 0:01:14.3]} 18.
Rae1 {[%clk 0:02:02.1]} 18... O-O-O {[%clk 0:01:13.2]} 19. Nd2 {[%clk 0:01:49]}
19... Rhe8 {[%clk 0:01:10.6]} 20. Nb3 {[%clk 0:01:49.1]} 20... c4 {[%clk
0:01:06.9]} 21. Nd4 {[%clk 0:01:49.2]} 21... Bc5 {[%clk 0:01:05.9]} 22. Be3
{[%clk 0:01:48.9]} 22... Be4 {[%clk 0:01:03.1]} 23. Rf2 {[%clk 0:01:39.3]} 23...
Bxd4 {[%clk 0:00:56.5]} 24. Bxd4 {[%clk 0:01:32.2]} 24... Bg6 {[%clk 0:00:55.6]}
25. Ref1 {[%clk 0:01:26.9]} 25... Rd5 {[%clk 0:00:53.4]} 26. b3 {[%clk
0:01:27.1]} 26... cxb3 {[%clk 0:00:52.3]} 27. cxb3 {[%clk 0:01:17.6]} 27... c5
{[%clk 0:00:51.5]} 28. Bxf6 {[%clk 0:01:18.1]} 28... gxf6 {[%clk 0:00:50.6]} 29.
Rxf6 {[%clk 0:01:19]} 29... Rd2 {[%clk 0:00:48.6]} 30. R1f2 {[%clk 0:01:19.6]}
30... Ree2 {[%clk 0:00:42.5]} 31. Rxe2 {[%clk 0:01:19.1]} 31... Rxe2 {[%clk
0:00:42.1]} 32. Rxa6 {[%clk 0:01:19.9]} 32... Be4 {[%clk 0:00:40.9]} 33. g4
{[%clk 0:01:20.6]} 33... Rg2+ {[%clk 0:00:37.5]} 34. Kf1 {[%clk 0:01:21.3]}
34... Rxg4 {[%clk 0:00:35.5]} 35. Ra5 {[%clk 0:01:04.3]} 35... Rg5 {[%clk
0:00:34.3]} 36. Kf2 {[%clk 0:01:04.9]} 36... Kc7 {[%clk 0:00:32.7]} 37. b4
{[%clk 0:01:05.5]} 37... Kb6 {[%clk 0:00:31.3]} 38. a3 {[%clk 0:01:05.5]} 38...
Rf5+ {[%clk 0:00:28.8]} 39. Ke3 {[%clk 0:01:05.9]} 39... cxb4 {[%clk 0:00:26.4]}
40. axb4 {[%clk 0:01:05.1]} 40... Bc2 {[%clk 0:00:25.3]} 41. Ra2 {[%clk
0:01:04]} 41... Bb3 {[%clk 0:00:24.8]} 42. Rd2 {[%clk 0:01:00.6]} 42... Rh5
{[%clk 0:00:24.2]} 43. Rd6+ {[%clk 0:01:01]} 43... Kb5 {[%clk 0:00:24.2]} 44.
Rd8 {[%clk 0:00:55.4]} 44... Rxh3+ {[%clk 0:00:23.6]} 45. Kd2 {[%clk 0:00:56.2]}
45... Rh2+ {[%clk 0:00:22.2]} 46. Ke3 {[%clk 0:00:53]} 46... Rh3+ {[%clk
0:00:21.5]} 47. Kd2 {[%clk 0:00:53.2]} 47... Rh2+ {[%clk 0:00:21.3]} 48. Ke3
{[%clk 0:00:53.3]} 48... Rh3+ {[%clk 0:00:21]} 1/2-1/2

[Event "Late-Titled-Tuesday-Blitz-March-19-2024"]
[Site "Chess.com"]
[Date "2024.03.19"]
[Round "6"]
[White "angelgab3"]
[Black "stollenmonster"]
[Result "0-1"]
[WhiteElo "2637"]
[BlackElo "2885"]
[TimeControl "180+1"]
[EndTime "15:04:58 PDT"]
[Termination "stollenmonster won by checkmate"]

1. e4 {[%clk 0:02:41.9]} 1... c5 {[%clk 0:02:59.8]} 2. Nf3 {[%clk 0:02:42.5]}
2... Nf6 {[%clk 0:03:00.3]} 3. e5 {[%clk 0:02:42.4]} 3... Nd5 {[%clk 0:03:00.4]}
4. Nc3 {[%clk 0:02:43.3]} 4... e6 {[%clk 0:03:00.8]} 5. Bc4 {[%clk 0:02:41.6]}
5... Nb6 {[%clk 0:03:00.5]} 6. Be2 {[%clk 0:02:41.9]} 6... Nc6 {[%clk
0:02:59.2]} 7. O-O {[%clk 0:02:38.8]} 7... d5 {[%clk 0:02:59.7]} 8. exd6 {[%clk
0:02:38.9]} 8... Bxd6 {[%clk 0:03:00.2]} 9. b3 {[%clk 0:02:39.3]} 9... O-O
{[%clk 0:02:59.7]} 10. Bb2 {[%clk 0:02:40.2]} 10... e5 {[%clk 0:02:58.4]} 11.
Re1 {[%clk 0:02:40.1]} 11... Re8 {[%clk 0:02:56.9]} 12. Bf1 {[%clk 0:02:32.6]}
12... Bg4 {[%clk 0:02:55.6]} 13. h3 {[%clk 0:02:31.9]} 13... Bh5 {[%clk
0:02:55.1]} 14. Ne4 {[%clk 0:02:32.5]} 14... Bf8 {[%clk 0:02:54.2]} 15. Ng3
{[%clk 0:02:32.4]} 15... Bg6 {[%clk 0:02:53.5]} 16. Nxe5 {[%clk 0:02:31]} 16...
Nxe5 {[%clk 0:02:53.1]} 17. Rxe5 {[%clk 0:02:31.9]} 17... Rxe5 {[%clk
0:02:52.4]} 18. Bxe5 {[%clk 0:02:32.8]} 18... Qd5 {[%clk 0:02:51.3]} 19. Bc3
{[%clk 0:02:30.1]} 19... Rd8 {[%clk 0:02:49.3]} 20. Be2 {[%clk 0:02:30.4]} 20...
Qd7 {[%clk 0:02:46.3]} 21. d3 {[%clk 0:02:24.2]} 21... Nd5 {[%clk 0:02:43.6]}
22. Bd2 {[%clk 0:02:24.3]} 22... Bd6 {[%clk 0:02:32.7]} 23. Ne4 {[%clk
0:02:14.5]} 23... Be5 {[%clk 0:02:30.7]} 24. Rb1 {[%clk 0:02:06.8]} 24... b6
{[%clk 0:02:30.3]} 25. Qe1 {[%clk 0:01:46]} 25... Re8 {[%clk 0:02:26.6]} 26. Qf1
{[%clk 0:01:43.2]} 26... Qc7 {[%clk 0:02:17.7]} 27. Re1 {[%clk 0:01:40.6]} 27...
h6 {[%clk 0:02:08.5]} 28. Bf3 {[%clk 0:01:35.4]} 28... Rd8 {[%clk 0:02:01.6]}
29. g3 {[%clk 0:01:30.3]} 29... Nb4 {[%clk 0:01:55.6]} 30. Bxb4 {[%clk
0:01:10.8]} 30... cxb4 {[%clk 0:01:55.6]} 31. Qe2 {[%clk 0:01:11.4]} 31... Bd4
{[%clk 0:01:52.2]} 32. Bh5 {[%clk 0:00:45.4]} 32... Bxe4 {[%clk 0:01:41.9]} 33.
dxe4 {[%clk 0:00:40.8]} 33... Qxg3+ {[%clk 0:01:41.8]} 34. Kf1 {[%clk
0:00:41.7]} 34... Qxh3+ {[%clk 0:01:41.4]} 35. Kg1 {[%clk 0:00:42.6]} 35... Rd6
{[%clk 0:00:52.8]} 36. Rd1 {[%clk 0:00:40.3]} 36... Be5 {[%clk 0:00:41.5]} 37.
Qf3 {[%clk 0:00:24.3]} 37... Bh2+ {[%clk 0:00:33]} 38. Kh1 {[%clk 0:00:21.7]}
38... Bg3+ {[%clk 0:00:33.2]} 39. Kg1 {[%clk 0:00:22.6]} 39... Rxd1+ {[%clk
0:00:31.2]} 40. Qxd1 {[%clk 0:00:23.5]} 40... Qh2+ {[%clk 0:00:31.5]} 41. Kf1
{[%clk 0:00:24.4]} 41... Qxf2# {[%clk 0:00:31.9]} 0-1